Cogmind - Beta 15 @@@ ROGUE MODE // 2025.05.23 @ 20:38:30 Player: Man of Plasma Result: Self-destructed Performance ------------- Evolutions (1) 500 Regions Visited (3) 600 Robots Destroyed (25) 125 Value Destroyed (497) 497 Prototype IDs (0) 0 Alien Tech Used (0) 0 Bonus (0) 0 TOTAL SCORE: 1722 Bonus ------- None Cogmind --------- Core Integrity 400/400 Matter 290/300 Energy 269/275 System Corruption 0% Temperature Cool (0) Movement Treading (160) Location -9/Materials Parts ------- > --- POWER (1) -------- Deuterium Engine > --- PROPULSION (3) --- Light Treads Light Treads Light Treads > --- UTILITY (3) ------ High-capacity Storage Unit Visual Processing Unit > --- WEAPON (2) ------- Medium Laser Particle Gun > --- INVENTORY (20) --- Ion Engine Ion Engine Light Treads Small Storage Unit Large Storage Unit Improved Sensor Array Seismic Detector EM Pulse Gun Particle Gun Particle Gun EMP Blaster Datajack Mining Laser Peak State ------------ > --- POWER ------------ Deuterium Engine > --- PROPULSION ------- Light Treads Light Treads Light Treads > --- UTILITY ---------- High-capacity Storage Unit Visual Processing Unit > --- WEAPON ----------- Medium Laser Particle Gun > --- INVENTORY -------- Ion Engine Ion Engine Light Treads Small Storage Unit Large Storage Unit Improved Sensor Array Seismic Detector EM Pulse Gun Particle Gun Particle Gun EMP Blaster Datajack Mining Laser [Rating: 13] Favorites ----------- Power Ion Engine Engine Ion Engine Propulsion Light Treads Treads Light Treads Utility High-capacity Storage Unit Storage High-capacity Storage Unit Processor Visual Processing Unit Weapon Particle Gun Energy Gun Particle Gun Ballistic Gun Assault Rifle Launcher EMP Blaster Build | -11 -10 -10 -9 ------- Run | Yrd Mat Min Mat Slots Evolved 2 | . . . 2 Power . | . . . . Propulsion 1 | . . . 1 Utility 1 | . . . 1 Weapon . | . . . . Parts Attached 17 | 6 9 2 . Power 3 | 1 1 1 . Engine 3 | 1 1 1 . Core . | . . . . Reactor . | . . . . Propulsion 4 | 2 2 . . Treads 4 | 2 2 . . Leg . | . . . . Wheel . | . . . . Hover . | . . . . Flight . | . . . . Utility 4 | 1 3 . . Device . | . . . . Storage 3 | 1 2 . . Processor 1 | . 1 . . Hackware . | . . . . Protection . | . . . . Artifact . | . . . . Weapon 6 | 2 3 1 . Energy Gun 4 | 1 3 . . Energy Cannon . | . . . . Ballistic Gun 1 | 1 . . . Ballistic Cannon . | . . . . Launcher 1 | . . 1 . Special Weapon . | . . . . Impact Weapon . | . . . . Slashing Weapon . | . . . . Piercing Weapon . | . . . . Special Melee Weapon . | . . . . Unidentified Prototypes . | . . . . Parts Lost 1 | . . 1 . Power 1 | . . 1 . Propulsion . | . . . . Utility . | . . . . Weapon . | . . . . Highest Loss Streak 1 | . . 1 . To Critical Strikes . | . . . . Average Backups 8 | . 7 13 13 Power 1 | . 1 2 2 Propulsion . | . . 2 1 Utility 2 | . 1 3 4 Weapon 3 | . 2 5 5 Tool/Special . | . . . . Unused Backups 5 | . . . 5 Power 1 | . . . 1 Propulsion . | . . . . Utility 1 | . . . 1 Weapon 2 | . . . 2 Tool/Special 1 | . . . 1 Average Slot Usage (%) 97 | . 96 98 88 Engine 13 | . 14 12 11 Treads 28 | . 28 28 33 Storage 14 | . 14 14 11 Processor 11 | . 10 14 11 Energy Gun 20 | . 19 21 22 Ballistic Gun 5 | . 8 . . Launcher 2 | . . 7 . Peak Build Rating 13 | 6 11 12 13 Average Rating 9 | 4 9 10 13 On Entrance 7 | . 6 11 12 Naked Turns . | . . . . Heaviest Build 54 | 14 51 54 . Greatest Support 40 | 40 40 40 . Greatest Overweight (x) 1 | . 1 1 . Average Overweight (x) . | . . 1 . Largest Inventory Capacity 20 | 8 20 20 20 Average Capacity 18 | 6 18 20 20 Most Carried 14 | 2 13 14 13 Average Carried 8 | . 7 13 13 Final Capacity 20 | 8 20 20 20 Final Carried 14 | 2 13 14 13 Class Distribution -------------------- 100% | Mutant Dominant Class ---------------- Mutant | -10/Materials Mutant | -10/Mines Mutant | -9/Materials Resources | -11 -10 -10 -9 ----------- Run | Yrd Mat Min Mat Matter Collected 485 | 235 205 45 . Remotely . | . . . . Salvage Created 675 | . 506 169 . Parts 46 | . 33 13 . Haulers Intercepted . | . . . . Recyclers Shooed 1 | . . 1 . Parts Field Recycled . | . . . . Retrieved Matter . | . . . . Parts Self-Destructed . | . . . . Prevented . | . . . . Kills | -11 -10 -10 -9 ------- Run | Yrd Mat Min Mat Combat Hostiles Destroyed 21 | . 13 8 . Guns 19 | . 12 7 . AOE 1 | . . 1 . Classes Destroyed 5 | . 5 . . Tunneler 1 | . 1 . . Recycler 1 | . 1 . . Watcher 2 | . 2 . . Swarmer 12 | . 6 6 . Grunt 9 | . 7 2 . Best Kill Streak 5 | . 5 3 . Combat Bots Only 5 | . 5 3 . Max Kills in Single Turn 2 | . 2 1 . Gunslinging 1 | . 1 . . Exploded 1 | . . 1 . Melee . | . . . . Uniques/NPCs Destroyed . | . . . . Combat | -11 -10 -10 -9 -------- Run | Yrd Mat Min Mat Hostile Shots Fired 101 | . 50 51 . Missed 24 | . 13 11 . Hits 77 | . 37 40 . Projectile 77 | . 37 40 . Damage Taken 780 | . 407 373 . Core 161 | . 100 61 . Absorbed by Shields . | . . . . Core Remaining (%) 67 | 100 . 35 . Volleys Fired 49 | . 32 17 . Largest 2 | . 2 2 . Hottest 130 | . 130 130 . Shots Fired 96 | . 65 31 . Gun 94 | . 65 29 . Cannon . | . . . . Launcher 2 | . . 2 . Special . | . . . . Kinetic 23 | . 23 . . Thermal 71 | . 42 29 . Explosive . | . . . . Electromagnetic 2 | . . 2 . Robot Hit Streak 20 | . 20 7 . Robot Miss Streak 3 | . 2 3 . Penetration Max . | . . . . Secondary Targets 4 | . 1 3 . Max Gunslinging Chain 1 | . 1 1 . Shots Hit Robots 70 | . 52 18 . Core Hits 27 | . 18 9 . Critical Kills . | . . . . Critical Parts Destroyed . | . . . . Critical Strikes 3 | . 3 . . Burn 3 | . 3 . . Melee Attacks . | . . . . Impact . | . . . . Slashing . | . . . . Piercing . | . . . . Sneak Attacks . | . . . . Combat Hostiles . | . . . . Follow-up Attacks . | . . . . Damage Inflicted 1076 | . 708 368 . Guns 1008 | . 705 303 . Cannons . | . . . . Explosions 50 | . . 50 . Melee . | . . . . Ramming 18 | . 3 15 . Kinetic 219 | . 219 . . Thermal 789 | . 486 303 . Explosive . | . . . . Electromagnetic 50 | . . 50 . Impact . | . . . . Slashing . | . . . . Piercing . | . . . . Highest Corruption 1 | . 1 1 . Average Corruption 1 | . 1 1 . Corruption Purged . | . . . . Corruption Blocked . | . . . . Effects 6 | . 3 3 . Matter Fused 1 | . . 1 . Energy Discharges 2 | . 1 1 . Data Loss (minor) 1 | . 1 . . Misfires 1 | . 1 . . Weapon Failures 1 | . . 1 . Overload Shots . | . . . . Overflow Damage . | . . . . Projectiles . | . . . . Explosions . | . . . . Melee . | . . . . Knockbacks . | . . . . Impact . | . . . . Kinetic . | . . . . Secondary . | . . . . Self-Inflicted Damage . | . . . . Shots . | . . . . Rammed 2 | . . 2 . Targets Rammed 3 | . 1 2 . Kicked . | . . . . Crushed 1 | . 1 . . Highest Temperature 414 | . 261 414 . Average Temperature 121 | . 91 172 . Received Heat Transfer 231 | . 156 75 . Effects 2 | . 1 1 . Energy Bleed 2 | . 1 1 . Siege Activations . | . . . . Martial Activations . | . . . . Shielding Activations . | . . . . Robots Disrupted . | . . . . Combat Hostiles . | . . . . Robots Corrupted . | . . . . Combat Hostiles . | . . . . Parts Fried . | . . . . Impact Corruptions . | . . . . Robots Melted 1 | . 1 . . Combat Hostiles 1 | . 1 . . Parts Melted 6 | . 2 4 . Heat Transferred 2220 | . 1480 740 . Parts Sabotaged . | . . . . Parts Stolen . | . . . . Parts Stripped . | . . . . Power Chain Reactions 1 | . . 1 . Alert | -11 -10 -10 -9 ------- Run | Yrd Mat Min Mat Maximum Alert Level . | . . . . Low Security (%) 100 | 100 100 100 100 Level 1 . | . . . . Level 2 . | . . . . Level 3 . | . . . . Level 4 . | . . . . Level 5 . | . . . . High Security . | . . . . Max Security . | . . . . Peak Influence 126 | . 126 122 9 Initial 39 | . . 39 9 Average 36 | . 24 68 9 Influence Increases 527 | . 334 193 . Destroy 0b10 Robot/C 420 | . 260 160 . Destroy 0b10 Robot/NC 20 | . 20 . . Destroy Leader 84 | . 54 30 . Destroy Structure 3 | . . 3 . Influence Decreases 518 | . 232 271 15 Entered New Map 78 | . . 63 15 Time Decay 430 | . 232 198 . Lost Part 10 | . . 10 . Squads Dispatched 3 | . 2 1 . Investigation 1 | . . 1 . Extermination . | . . . . Reinforcement 2 | . 2 . . Assault . | . . . . Garrison . | . . . . Intercept . | . . . . Searches Triggered . | . . . . Construction Impeded . | . . . . Haulers Reinforced . | . . . . Active Scanning Responses . | . . . . Cargo Convoy Interrupts . | . . . . Stealth | -11 -10 -10 -9 --------- Run | Yrd Mat Min Mat Distress Signals 1 | . 1 . . Communications Jammed . | . . . . Distress Signals . | . . . . Times Spotted 28 | . 20 8 . Peak Tracking Total 4 | . 4 3 . Tactical Retreats . | . . . . Traps | -11 -10 -10 -9 ------- Run | Yrd Mat Min Mat Traps Triggered 1 | . 1 . . Indirectly . | . . . . Trap Hack Attempts . | . . . . Triggered . | . . . . Disarmed . | . . . . Reprogrammed . | . . . . Reused . | . . . . Traps Extracted . | . . . . Installed . | . . . . Triggered . | . . . . Machines | -11 -10 -10 -9 ---------- Run | Yrd Mat Min Mat Machines Disabled . | . . . . Max in Single Turn . | . . . . Machines Repaired . | . . . . Machines Dismantled . | . . . . Machines Sabotaged . | . . . . Overloaded Fab Kills . | . . . . Hacking | -11 -10 -10 -9 --------- Run | Yrd Mat Min Mat Machines Accessed 1 | . . 1 . Terminals . | . . . . Fabricators . | . . . . Repair Stations . | . . . . Recycling Units . | . . . . Scanalyzers . | . . . . Garrison Access . | . . . . Total Hacks 1 | . . 1 . Successful 1 | . . 1 . Failed . | . . . . Catastrophic . | . . . . Database Lockouts . | . . . . Manual . | . . . . Terminals . | . . . . Fabricators . | . . . . Repair Stations . | . . . . Recycling Units . | . . . . Scanalyzers . | . . . . Garrison Access . | . . . . Terminal Hacks 1 | . . 1 . Open Door 1 | . . 1 . Fabricator Hacks . | . . . . Repair Station Hacks . | . . . . Recycling Unit Hacks . | . . . . Scanalyzer . | . . . . Garrison Access Hacks . | . . . . Unauthorized Hacks . | . . . . Terminals . | . . . . Fabricators . | . . . . Repair Stations . | . . . . Recycling Units . | . . . . Scanalyzers . | . . . . Garrison Access . | . . . . Data Cores Recovered . | . . . . Used . | . . . . Hacking Detections . | . . . . Full Trace Events . | . . . . Feedback Events . | . . . . Feedback Blocked . | . . . . Robot Schematics Acquired . | . . . . Robots Built . | . . . . Authchips . | . . . . Time . | . . . . Total Robot Build Rating . | . . . . Part Schematics Acquired . | . . . . Parts Built . | . . . . Authchips . | . . . . Time . | . . . . Total Part Build Rating . | . . . . Parts Repaired . | . . . . Time . | . . . . Parts Recycled . | . . . . Recycled Matter . | . . . . Retrieved Matter . | . . . . Retrieved Components . | . . . . Parts Scanalyzed . | . . . . Part Schematics Acquired . | . . . . Parts Damaged . | . . . . Bothacking | -11 -10 -10 -9 ------------ Run | Yrd Mat Min Mat Used RIF Installer . | . . . . Robots Hacked . | . . . . Non-combat . | . . . . Combat . | . . . . Robot Hacks Applied . | . . . . Relay Couplers Released . | . . . . Fabnet Peak Effective % . | . . . . Robots Rewired . | . . . . Allies Hacked . | . . . . Hacks Repelled . | . . . . Allies | -11 -10 -10 -9 -------- Run | Yrd Mat Min Mat Total Allies . | . . . . Largest Group . | . . . . Highest-Rated Group . | . . . . Highest-Rated Ally . | . . . . Total Orders . | . . . . Ally Attacks . | . . . . Total Damage . | . . . . Kills . | . . . . Allies Corrupted . | . . . . Allies Melted . | . . . . Intel | -11 -10 -10 -9 ------- Run | Yrd Mat Min Mat Active Infowar (turns) 1076 | . 672 403 1 Optics 1076 | . 672 403 1 Robot Analysis Total . | . . . . Derelict Logs Recovered . | . . . . Drone Launches . | . . . . Drone Recoveries . | . . . . Exploration | -11 -10 -10 -9 ------------- Run | Yrd Mat Min Mat Turns Passed 1351 | 60 887 403 1 Spaces Moved 515 | 32 346 137 . Core 1 | 1 . . . Treads 514 | 31 346 137 . Legs . | . . . . Wheels . | . . . . Hover . | . . . . Flight . | . . . . Fastest Speed 50 | 50 160 240 . Average Speed 221 | 156 219 240 . Slowest Speed 240 | 160 240 240 . Overloaded Moves . | . . . . Propulsion Burnouts . | . . . . Robots Hopped . | . . . . Potential Cave-ins . | . . . . Cave-ins Triggered . | . . . . Exploration Rate (%) 31 | 5 85 34 1 Regions Visited 3 Branch Regions 1 Pre-discovered Areas . | . . . . Known Exits Taken . | . . . . Unknown Exits Taken 3 | 1 1 1 . Scrap Searched . | . . . . Spaces Dug . | . . . . Terrain Destroyed 3 | . . 3 . Melee . | . . . . Projectile . | . . . . AOE 3 | . . 3 . Terrain Rammed . | . . . . Walls Destroyed . | . . . . Machines Disabled . | . . . . Actions | -11 -10 -10 -9 --------- Run | Yrd Mat Min Mat Total 623 | 39 407 176 1 Wait 25 | . 8 17 . Move 512 | 31 345 136 . Hop . | . . . . Pick Up 7 | 2 4 1 . Fast Attach 10 | 6 3 1 . Attach 4 | . 3 . 1 Detach 5 | . 5 . . Swap 8 | . 6 2 . Drop . | . . . . Fire 49 | . 32 17 . Melee . | . . . . Ram . | . . . . Kick . | . . . . Crush 3 | . 1 2 . Escape Stasis . | . . . . Rewire . | . . . . Trap . | . . . . Miscellaneous . | . . . . Route ------- -11/Scrapyard -10/Materials (discovered 3 exits: [*Mat x2] / *Min) -10/Mines -9/Materials History --------- Turn | Location | Event 10 | -11/Scrapyard | Discovered new exit (range 15) 61 | -11/Scrapyard | Entered Materials 316 | -10/Materials | Build established: Mutant 565 | -10/Materials | Discovered new exit (range 17) 716 | -10/Materials | Discovered new exit (range 8) 921 | -10/Materials | Discovered new exit (range 6) 948 | -10/Materials | Entered Mines 1025 | -10/Mines | Core integrity fell below 50% 1231 | -10/Mines | Discovered new exit (range 10) 1275 | -10/Mines | Met a Derelict shopkeep closing up shop 1351 | -10/Mines | Entered Materials 1351 | -9/Materials | Evolved 2 slots: Propulsion x1, Utility x1 1352 | -9/Materials | Self-destructed Last Messages --------------- 01254_ S-10 Pest destroyed. 01274_ Connecting with SHOP.Sys... 01274_ Current location identified: Mines >>Open Door Sealed Doors opened. 01275_ F3-IWF(g): "Sorry, the Unaware have moved into these parts and I'm closing up shop. No more sales from me!" 01277_ ALERT: Derelict activity detected in mines. Dispatching investigation squad. 01279_ F3-IWF(g): "Grab stuff and run for it!" 01289_ Acquired Deuterium Engine. 01297_ Acquired Imp. Sensor Array. 01332_ Acquired 15 matter. 01337_ System corrupted: Matter fused (-7). 01337_ Acquired 7 matter. 01344_ Slammed into R-06 Scavenger. PARAMETERS=PROPULSION+1,UTILITY+1 LOCATION=UNKNOWN GOAL=ESCAPE Map ----- +----------------------------------------------------+ | | | | | | | | | | | | | | | | | | | | | | | ?????????????????????????????????????????????????? | | ?????????????????????????????????????????????????? | | ?????????????????????????????????????????????????? | | ?????????????????????????????????????????????????? | | ?????????????????????????????????????????????????? | | ?????????????????????????????????????????????????? | | ?????????????????????????????????????????????????? | | ?????????????????????????????????????????????????? | | ?????????????????????????????????????????????????? | | ?????????????????????????????????????????????????? | | ?????????????????????????????????????????????????? | | ?????????????????????????????????????????????????? | | ???????????????????????#####?????????????????????? | | ???????????????????????# #?????????????????????? | | ???????????????????????# @ #?????????????????????? | | ???????????????????????# #?????????????????????? | | ???????????????????????# +?????????????????????? | | ???????????????????????# #?????????????????????? | | ???????????????????????# #?????????????????????? | | ???????????????????????# #?????????????????????? | | ???????????????????????# #?????????????????????? | | ???????????????????????# #?????????????????????? | | ???????????????????????# #?????????????????????? | | ???????????????????????# +?????????????????????? | | ??????????????????????? #?????????????????????? | | ??????????????????????? #?????????????????????? | | ??????????????????????? #?????????????????????? | | ???????????????????????"" #?????????????????????? | | ???????????????????????"" #?????????????????????? | | ????????????????????????? ??????????????????????? | | ????????????????????????? ??????????????????????? | | ????????????????????????? ??????????????????????? | | ?????????????????????????????????????????????????? | | ?????????????????????????????????????????????????? | | ?????????????????????????????????????????????????? | | ?????????????????????????????????????????????????? | | ?????????????????????????????????????????????????? | | ?????????????????????????????????????????????????? | | ?????????????????????????????????????????????????? | +----------------------------------------------------+ Best States ------------- Heat Dissipation 25 Energy Generation 14 Energy Capacity 275 Matter Stores 300 Matter Capacity 300 Sight Range 18 Terrain Scan Density 10 Evasion (%) 40 Recoil Reduction 2 Item Schematics ----------------- None Robot Schematics ------------------ None Fabricated ------------ Nothing Repaired ---------- Nothing Alien Tech Used ----------------- None Achievements -------------- None Challenges ------------ None Game ------ Seed ShieldMagneticRailcannon Manual? 0 Play Time 00:07:32 Cumulative 20.7 hours Start 2025.05.23 @ 20:30:13 End 2025.05.23 @ 20:38:30 Sessions 1 Manual Loads 0 Difficulty Rogue Special Mode None Game No. 33 Rogue 33 Adventurer 0 Explorer 0 Win Type - Total 0 Types 0/0/0/0/0/0/0/0/0/0 Lore% 21 Gallery% 26 Achievement% 23 Wizard Run 0 Options --------- Layout 1 ASCII 0 Keyboard 0 Movement Numpad Keybinds 0 Fullscreen 1 Font 24/Smallcaps Map View 50x35 Zoom Use 0% Tactical HUD 1 Map Filters NONE Filters NONE Steam 1 RUN: 8c8c9901-0b25-49e0-89ca-6984eed90f1c